Cogmind - Beta 12 @@@ ROGUE MODE // 2023.07.14 @ 19:23:15 Player: Senator Honkstrong Result: Destroyed by G-50 Soldier with Heavy Laser Performance ------------- Evolutions (2) 1000 Regions Visited (9) 1800 Robots Destroyed (246) 1230 Value Destroyed (7287) 7287 Prototype IDs (48) 960 Alien Tech Used (0) 0 Bonus (2334) 2334 TOTAL SCORE: 14611 Bonus ------- High Alert Combat Kills 1882 Follower Combat Kills 64 Entered Garrisons 200 Used RIF Installer 500 Aligned with FarCom 300 Friendly Fire -612 Cogmind --------- Core Integrity 0/550 Matter 69/300 Energy 92/100 System Corruption 4% Temperature Cool (9) Movement Treading (240) Ox1 Location -8/Materials Parts ------- > --- POWER (1) -------- (None) > --- PROPULSION (4) --- Light Treads > --- UTILITY (3) ------ Improved Coolant Injector Large Storage Unit > --- WEAPON (3) ------- 8R-AWN's Boregun > --- INVENTORY (15) --- Advanced Myomer Leg Gravity Neutralizer Experimental Sensor Array Advanced Weapon Cycler 8R-AWN's Armor/EX Relay Coupler [NC] (24) System Restoration Module Advanced EMP Blaster Field Lobotomy Kit (5) Peak State ------------ > --- POWER ------------ Nuclear Core > --- PROPULSION ------- Flying Fortress v7 > --- UTILITY ---------- Experimental Heat Sink Large Storage Unit Hardened Medium Armor Plating > --- WEAPON ----------- 8R-AWN's Boregun 8R-AWN's Boregun Assault Cannon > --- INVENTORY -------- Reinforced Fission Core Advanced Myomer Leg Advanced Myomer Leg Gravity Neutralizer Experimental Sensor Array Experimental Targeting Computer Advanced Weapon Cycler 8R-AWN's Armor/EX Beam Cannon Heavy Particle Cannon Heavy Assault Rifle Improved Grenade Launcher Field Lobotomy Kit [Rating: 79] Favorites ----------- Power Cooled Ion Engine Engine Cooled Ion Engine Power Core Reinforced Fission Core Propulsion Light Treads Treads Light Treads Leg Advanced Myomer Leg Flight Unit Flying Fortress v7 Utility Large Storage Unit Device Experimental Heat Sink Storage Large Storage Unit Processor Targeting Computer Hackware Hacking Suite Protection Medium Armor Plating Weapon Precision Assault Rifle Energy Gun Medium Laser Energy Cannon Particle Cannon Ballistic Gun Precision Assault Rifle Ballistic Cannon Bore Cannon Launcher Rocket Launcher Special Weapon Improved Plasma Cutter Build | -11 -10 -10 -9 -9 -9 -8 -8 -8 -8 ------- Run | Jun Mat Min Mat Min Exi Min Mat Gar Mat Slots Evolved 4 | . . . 2 . . . 2 . . Power . | . . . . . . . . . . Propulsion 2 | . . . . . . . 2 . . Utility 1 | . . . 1 . . . . . . Weapon 1 | . . . 1 . . . . . . Parts Attached 165 | 7 12 3 27 2 28 6 56 11 13 Power 15 | 1 2 . 4 . 2 . 5 . 1 Engine 9 | 1 1 . 4 . 1 . 1 . 1 Core 6 | . 1 . . . 1 . 4 . . Reactor . | . . . . . . . . . . Propulsion 27 | 2 1 . 6 . 5 . 7 3 3 Treads 17 | 2 1 . 6 . 3 . 1 1 3 Leg 9 | . . . . . 2 . 5 2 . Wheel . | . . . . . . . . . . Hover . | . . . . . . . . . . Flight 1 | . . . . . . . 1 . . Utility 50 | 1 4 2 10 . 10 2 15 5 1 Device 22 | . . 1 1 . 6 1 9 3 1 Storage 5 | 1 2 . 1 . . . 1 . . Processor 2 | . 1 . . . . . 1 . . Hackware 5 | . . . 3 . 1 . 1 . . Protection 16 | . 1 1 5 . 3 1 3 2 . Artifact . | . . . . . . . . . . Weapon 73 | 3 5 1 7 2 11 4 29 3 8 Energy Gun 3 | 1 . . 1 . . . 1 . . Energy Cannon 10 | . 2 . 1 . . . 7 . . Ballistic Gun 35 | 2 2 1 2 . 8 2 14 1 3 Ballistic Cannon 11 | . . . 2 1 1 . 4 1 2 Launcher 10 | . 1 . 1 1 . 2 3 1 1 Special Weapon 4 | . . . . . 2 . . . 2 Impact Weapon . | . . . . . . . . . . Slashing Weapon . | . . . . . . . . . . Piercing Weapon . | . . . . . . . . . . Special Melee Weapon . | . . . . . . . . . . Unidentified Prototypes 12 | . . 1 2 . 5 . 4 . . Parts Lost 36 | . . . 2 . 11 1 5 2 15 Power 2 | . . . . . . . . . 2 Propulsion 9 | . . . . . 3 . 1 . 5 Utility 9 | . . . 2 . 3 . 1 1 2 Weapon 16 | . . . . . 5 1 3 1 6 Highest Loss Streak 11 | . . . 1 . 11 1 1 1 10 To Critical Strikes 6 | . . . . . 6 . . . . Average Slot Usage (%) 96 | . 98 99 99 100 98 99 83 99 85 Engine 6 | . 12 14 11 11 10 . . . 3 Core 3 | . 1 . . . . 11 8 9 5 Treads 15 | . 27 28 22 22 20 . . 4 20 Leg 8 | . . . . . 1 22 17 31 8 Device 5 | . . . . . 1 11 13 9 11 Storage 10 | . 14 14 11 11 11 11 9 9 9 Hackware 2 | . . . 10 . . 2 1 . . Protection 10 | . 9 13 10 22 19 8 1 8 2 Energy Cannon 3 | . 9 14 6 . . . 2 . . Ballistic Gun 17 | . 13 14 21 20 12 18 19 18 10 Ballistic Cannon 4 | . . . 4 4 9 11 2 2 8 Launcher 3 | . . . . 7 9 2 . 6 3 Naked Turns . | . . . . . . . . . . Heaviest Build 67 | 14 40 41 51 58 58 67 64 67 64 Greatest Support 87 | 40 40 40 43 43 72 60 84 84 87 Greatest Overweight (x) 3 | . . 1 1 1 2 1 1 . 3 Average Overweight (x) . | . . . . 1 . . . . . Largest Inventory Capacity 15 | 8 15 15 15 15 15 15 15 15 15 Average Capacity 14 | 7 10 15 15 15 15 15 15 15 15 Most Carried 15 | 2 13 15 15 15 15 15 15 15 15 Average Carried 13 | 1 8 14 14 15 12 14 14 14 13 Final Capacity 15 | 8 15 15 15 15 15 15 15 15 15 Final Carried 15 | 2 13 15 15 15 15 15 15 15 11 Class Distribution -------------------- 42% | Tank 31% | Mutant 13% | Scavenger-Gunner 5% | Scavenger-Tank 5% | Gunner Dominant Class ---------------- Mutant | -10/Materials Mutant | -10/Mines Tank | -9/Materials Tank | -9/Mines Tank | -9/Exiles Scavenger-Tank | -8/Mines Scavenger-Gunner | -8/Materials Mutant | -8/Garrison Gunner | -8/Materials Resources | -11 -10 -10 -9 -9 -9 -8 -8 -8 -8 ----------- Run | Jun Mat Min Mat Min Exi Min Mat Gar Mat Matter Collected 6241 | 175 380 38 1086 208 691 312 2072 616 663 Remotely . | . . . . . . . . . . Salvage Created 8375 | 183 427 52 2057 130 152 317 2573 1033 1451 Parts 545 | 21 39 4 127 7 10 34 157 70 76 Haulers Intercepted 13 | . 1 . 4 . . . 6 . 2 Recyclers Shooed 5 | 1 1 . 1 . . . 1 . 1 Parts Field Recycled . | . . . . . . . . . . Retrieved Matter . | . . . . . . . . . . Parts Self-Destructed . | . . . . . . . . . . Prevented . | . . . . . . . . . . Kills | -11 -10 -10 -9 -9 -9 -8 -8 -8 -8 ------- Run | Jun Mat Min Mat Min Exi Min Mat Gar Mat Combat Hostiles Destroyed 191 | . 12 1 37 13 5 18 51 35 19 Guns 106 | . 7 1 21 3 3 7 33 19 12 Cannons 40 | . 2 . 14 . . 4 11 2 7 AOE 44 | . 3 . 2 10 2 7 6 14 . Classes Destroyed 17 | 3 5 . 3 1 . . 2 2 1 Worker 7 | 1 1 . 3 . . 1 1 . . Builder 11 | . . . 5 . . . 1 . 5 Tunneler 7 | 5 . 1 . 1 . . . . . Hauler 13 | . 1 . 4 . . . 6 . 2 Recycler 14 | 1 . . 4 1 . . 2 . 6 Operator 6 | . 1 . 3 . . . 1 . 1 Watcher 12 | . 3 . 4 . . . 5 . . Swarmer 69 | . 6 . 8 4 . 13 13 19 6 Cutter 2 | . . . . . . . . 2 . Grunt 68 | . 6 1 18 . . 5 23 9 6 Brawler 1 | . . . . . . . . . 1 Duelist 4 | . . . 1 . . . . . 3 Sentry 27 | . . . 10 . . . 11 4 2 Specialist 1 | . . . . . . . . 1 . Hunter 4 | . . . . . . . 3 . 1 Heavy 1 | . . . . . . . 1 . . Assembled 16 | . . . . 9 7 . . . . Best Kill Streak 16 | 7 3 1 16 13 4 5 11 10 13 Combat Bots Only 12 | . 3 1 6 12 4 5 9 10 6 Max Kills in Single Turn 4 | 1 2 1 4 3 3 4 4 4 2 Gunslinging 1 | . . . 1 . . . . . . Exploded 4 | . 2 . 2 3 2 4 1 3 . Melee . | . . . . . . . . . . Uniques/NPCs Destroyed 1 | . . . . . 1 . . . . 8R-AWN (-9/Exiles) Combat | -11 -10 -10 -9 -9 -9 -8 -8 -8 -8 -------- Run | Jun Mat Min Mat Min Exi Min Mat Gar Mat Damage Taken 8707 | . 413 . 906 383 1156 492 2325 913 2119 Core 924 | . 123 . 127 6 54 58 281 85 190 Absorbed by Shields . | . . . . . . . . . . Regen/Repaired (Parts) 195 | . 86 . 106 . . . . . 3 Core Remaining (%) 62 | 100 . 50 . . . 38 . . . Volleys Fired 503 | 16 51 1 87 14 27 28 139 68 72 Largest 3 | 2 2 2 3 3 3 3 3 3 3 Hottest 179 | 70 88 88 137 113 81 116 179 113 129 Shots Fired 1276 | 32 102 2 256 38 75 75 402 135 159 Gun 854 | 32 82 1 152 26 67 43 273 94 84 Cannon 330 | . 18 1 100 2 . 28 110 20 51 Launcher 64 | . 2 . 4 10 2 4 19 21 2 Special 28 | . . . . . 6 . . . 22 Kinetic 987 | 16 51 1 197 28 67 71 307 114 135 Thermal 225 | 16 49 1 55 . 6 . 76 . 22 Explosive 32 | . 2 . 4 10 2 4 10 . . Electromagnetic 32 | . . . . . . . 9 21 2 Robot Hit Streak 22 | 7 17 1 21 3 22 7 11 13 14 Robot Miss Streak 7 | 3 5 1 4 5 3 5 7 3 3 Penetration Max 2 | . . . . . . 1 2 . 2 Secondary Targets 8 | . 1 . 3 . 2 . 2 . . Max Gunslinging Chain 2 | . 1 . 2 . 1 . 1 . . Shots Hit Robots 740 | 19 72 1 153 12 61 34 222 65 101 Core Hits 390 | 8 24 3 72 28 26 26 105 53 45 Critical Kills 12 | . . . . . . 3 4 1 4 Critical Parts Destroyed 18 | . 1 . 1 . . 3 4 . 9 Critical Strikes 43 | . 1 . 3 . 1 6 10 2 20 Meltdown 1 | . . . . . . . 1 . . Destroy 29 | . 1 . 1 . . 6 7 1 13 Blast 10 | . . . 2 . . . 2 1 5 Sever 3 | . . . . . 1 . . . 2 Melee Attacks . | . . . . . . . . . . Impact . | . . . . . . . . . . Slashing . | . . . . . . . . . . Piercing . | . . . . . . . . . . Sneak Attacks . | . . . . . . . . . . Combat Hostiles . | . . . . . . . . . . Follow-up Attacks . | . . . . . . . . . . Damage Inflicted 19441 | 235 1306 47 3503 908 1363 1133 5838 2443 2665 Guns 9560 | 235 786 14 1616 194 951 285 2992 1041 1446 Cannons 4619 | . 300 . 1492 . . 220 1501 128 978 Explosions 4955 | . 191 . 357 709 355 620 1345 1274 104 Melee . | . . . . . . . . . . Ramming 113 | . 29 33 38 5 . 8 . . . Kinetic 11542 | 149 465 14 2309 194 951 505 3362 1169 2424 Thermal 3155 | 86 621 . 799 . 57 . 1263 192 137 Explosive 3097 | . 191 . 357 709 355 620 865 . . Electromagnetic 1534 | . . . . . . . 348 1082 104 Impact . | . . . . . . . . . . Slashing . | . . . . . . . . . . Piercing . | . . . . . . . . . . Highest Corruption 4 | . . . 1 1 1 1 . 1 4 Average Corruption 1 | . . . 1 1 1 1 . 1 4 Corruption Purged 2 | . . . . . . . . 2 . Corruption Blocked . | . . . . . . . . . . Effects 23 | . . . . 7 6 5 . 3 2 Message Errors 7 | . . . . 3 1 1 . 2 . Matter Fused 8 | . . . . 1 3 2 . . 2 Heat Flow Errors 2 | . . . . 1 1 . . . . Energy Discharges 3 | . . . . 2 1 . . . . Parts Fused 1 | . . . . . . 1 . . . Data Loss (minor) 1 | . . . . . . . . 1 . Misfires 1 | . . . . . . 1 . . . Overload Shots . | . . . . . . . . . . Overflow Damage 330 | . 24 . 53 8 6 38 126 33 42 Projectiles 191 | . 15 . 53 . . . 81 . 42 Explosions 139 | . 9 . . 8 6 38 45 33 . Melee . | . . . . . . . . . . Knockbacks 25 | . . . 5 . . 3 8 . 9 Impact . | . . . . . . . . . . Kinetic 23 | . . . 4 . . 3 8 . 8 Secondary 2 | . . . 1 . . . . . 1 Self-Inflicted Damage 350 | . . . . 51 . 65 88 138 8 Shots 20 | . . . . 2 . 3 5 9 1 Rammed 17 | . 5 4 7 1 . . . . . Targets Rammed 19 | . 5 5 7 1 . 1 . . . Kicked 1 | . . . . . . 1 . . . Crushed 1 | . . 1 . . . . . . . Highest Temperature 465 | 72 213 39 374 201 189 362 465 199 198 Average Temperature 88 | 29 47 22 88 75 52 124 117 88 86 Received Heat Transfer 2535 | . 117 . 351 120 . 225 945 201 576 Effects 9 | . . . 1 . . 1 7 . . Energy Bleed 3 | . . . 1 . . 1 1 . . Interference 5 | . . . . . . . 5 . . Damage (minor) 1 | . . . . . . . 1 . . Siege Activations . | . . . . . . . . . . Robots Corrupted . | . . . . . . . . . . Combat Hostiles . | . . . . . . . . . . Parts Fried 3 | . . . . . . . 2 1 . Impact Corruptions . | . . . . . . . . . . Robots Melted 1 | . . . . . . . 1 . . Combat Hostiles 1 | . . . . . . . 1 . . Parts Melted 3 | . 1 . 1 . . . 1 . . Heat Transferred 5686 | 259 1443 . 1406 . 45 . 2037 200 296 Parts Sabotaged . | . . . . . . . . . . Parts Stolen . | . . . . . . . . . . Parts Stripped . | . . . . . . . . . . Power Chain Reactions 9 | . . . . . . . 2 7 . Missiles Intercepted . | . . . . . . . . . . Alert | -11 -10 -10 -9 -9 -9 -8 -8 -8 -8 ------- Run | Jun Mat Min Mat Min Exi Min Mat Gar Mat Peak Influence 2285 | 35 231 48 348 302 . 317 1368 2285 1707 Initial 1103 | . 22 . . 117 . . 62 889 1103 Average 523 | 8 74 13 184 106 . 162 761 1763 1459 Maximum Alert Level 5 | . 1 . 1 1 . 1 4 5 5 Low Security (%) 54 | 100 97 100 62 90 . 75 18 . . Level 1 12 | . 2 . 37 9 . 24 4 . . Level 2 1 | . . . . . . . 7 . . Level 3 13 | . . . . . . . 62 7 . Level 4 8 | . . . . . . . 7 28 76 Level 5 9 | . . . . . . . . 64 23 High Security . | . . . . . . . . . . Max Security . | . . . . . . . . . . Sterilizations 1 | . . . . . . . 1 . . Squads Dispatched 27 | . 3 1 7 . . . 11 . 5 Investigation 5 | . 1 1 3 . . . . . . Extermination . | . . . . . . . . . . Reinforcement 13 | . 2 . 4 . . . 7 . . Assault 3 | . . . . . . . 1 . 2 Garrison 6 | . . . . . . . 3 . 3 Intercept . | . . . . . . . . . . Searches Triggered . | . . . . . . . . . . Construction Impeded 5 | . . . 1 . . . 4 . . Haulers Reinforced . | . . . . . . . . . . Active Scanning Responses . | . . . . . . . . . . Cargo Convoy Interrupts . | . . . . . . . . . . Stealth | -11 -10 -10 -9 -9 -9 -8 -8 -8 -8 --------- Run | Jun Mat Min Mat Min Exi Min Mat Gar Mat Distress Signals 15 | . 1 . 5 . . . 5 . 4 Communications Jammed 2 | . . . . . . . 2 . . Distress Signals 1 | . . . . . . . 1 . . Times Spotted 260 | . 19 2 51 21 5 21 69 35 37 Peak Tracking Total 10 | . 3 2 6 10 6 6 7 7 6 Tactical Retreats 24 | . 1 . . 3 . 2 8 3 7 Traps | -11 -10 -10 -9 -9 -9 -8 -8 -8 -8 ------- Run | Jun Mat Min Mat Min Exi Min Mat Gar Mat Traps Triggered 12 | . 1 . 2 . . . 1 8 . Indirectly 3 | . . . . . . . 1 2 . Trap Hack Attempts . | . . . . . . . . . . Triggered . | . . . . . . . . . . Disarmed 6 | . 6 . . . . . . . . Reprogrammed . | . . . . . . . . . . Reused . | . . . . . . . . . . Traps Extracted . | . . . . . . . . . . Installed . | . . . . . . . . . . Triggered . | . . . . . . . . . . Machines | -11 -10 -10 -9 -9 -9 -8 -8 -8 -8 ---------- Run | Jun Mat Min Mat Min Exi Min Mat Gar Mat Machines Disabled 29 | . . . 2 1 3 1 10 7 5 Max in Single Turn 3 | . . . 1 1 2 1 3 1 2 Garrison Relay 5 | . . . . . . . . 5 . Phase Generator 1 | . . . . . . . . 1 . Machines Repaired . | . . . . . . . . . . Machines Sabotaged . | . . . . . . . . . . Overloaded Fab Kills . | . . . . . . . . . . Hacking | -11 -10 -10 -9 -9 -9 -8 -8 -8 -8 --------- Run | Jun Mat Min Mat Min Exi Min Mat Gar Mat Machines Accessed 48 | . 8 2 11 . 3 . 17 3 4 Terminals 26 | . 5 1 6 . . . 10 3 1 Fabricators . | . . . . . . . . . . Repair Stations 5 | . 1 . 1 . . . 2 . 1 Recycling Units 7 | . 2 . 2 . . . 2 . 1 Scanalyzers 5 | . . . 2 . . . 2 . 1 Garrison Access 1 | . . . . . . . 1 . . Total Hacks 162 | . 30 3 50 . 4 . 62 4 9 Successful 103 | . 17 2 33 . 4 . 39 2 6 Failed 57 | . 12 1 16 . . . 23 2 3 Catastrophic 10 | . 1 1 1 . . . 4 2 1 Database Lockouts 2 | . 1 . 1 . . . . . . Manual 60 | . 13 2 16 . 1 . 25 1 2 Terminals 90 | . 21 2 28 . . . 33 4 2 Fabricators . | . . . . . . . . . . Repair Stations 14 | . 4 . 3 . . . 4 . 3 Recycling Units 14 | . 5 . 5 . . . 3 . 1 Scanalyzers 38 | . . . 14 . . . 21 . 3 Garrison Access 1 | . . . . . . . 1 . . Terminal Hacks 37 | . 7 2 11 . 4 . 10 2 1 Record 3 | . . . . . 3 . . . . Robot Analysis 9 | . 2 1 2 . . . 3 . 1 Prototype ID Bank 8 | . 1 . 4 . . . 3 . . Open Door 2 | . . 1 . . . . . 1 . Branch Access Points 1 | . . . . . . . 1 . . Terminal Index 1 | . 1 . . . . . . . . Unreport Threat 4 | . . . 3 . . . 1 . . Locate Traps 6 | . 2 . 2 . . . 2 . . Disarm Traps 1 | . 1 . . . . . . . . Garrison Registry 1 | . . . . . . . . 1 . EX-Prototype ID Bank 1 | . . . . . 1 . . . . Fabricator Hacks . | . . . . . . . . . . Repair Station Hacks 10 | . 4 . 3 . . . 1 . 2 Scan Component 6 | . 2 . 2 . . . 1 . 1 Repair 4 | . 2 . 1 . . . . . 1 Recycling Unit Hacks 8 | . 3 . 4 . . . 1 . . Retrieve Matter 2 | . 1 . 1 . . . . . . Retrieve Components 6 | . 2 . 3 . . . 1 . . Scanalyzer 34 | . . . 12 . . . 20 . 2 Insert Component 14 | . . . 4 . . . 9 . 1 Analyze 20 | . . . 8 . . . 11 . 1 Garrison Access Hacks 1 | . . . . . . . 1 . . Unlock Access 1 | . . . . . . . 1 . . Unauthorized Hacks 13 | . 3 . 3 . . . 6 . 1 Terminals 13 | . 3 . 3 . . . 6 . 1 Botnet 13 | . 3 . 3 . . . 6 . 1 Fabricators . | . . . . . . . . . . Repair Stations . | . . . . . . . . . . Recycling Units . | . . . . . . . . . . Scanalyzers . | . . . . . . . . . . Garrison Access . | . . . . . . . . . . Data Cores Recovered 1 | . . . . . . . . . 1 Used 1 | . . . . . . . . . 1 Hacking Detections 38 | . 7 1 11 . . . 15 2 2 Full Trace Events 4 | . . . 3 . . . . 1 . Feedback Events 1 | . . . 1 . . . . . . Hackware Fried 1 | . . . 1 . . . . . . Feedback Blocked . | . . . . . . . . . . Robot Schematics Acquired . | . . . . . . . . . . Robots Built . | . . . . . . . . . . Authchips . | . . . . . . . . . . Time . | . . . . . . . . . . Total Robot Build Rating . | . . . . . . . . . . Part Schematics Acquired 11 | . . . 4 . . . 6 . 1 Parts Built . | . . . . . . . . . . Authchips . | . . . . . . . . . . Time . | . . . . . . . . . . Total Part Build Rating . | . . . . . . . . . . Parts Repaired 4 | . 2 . 1 . . . . . 1 Time 184 | . 52 . 32 . . . . . 100 Parts Recycled . | . . . . . . . . . . Recycled Matter . | . . . . . . . . . . Retrieved Matter 82 | . . . 82 . . . . . . Retrieved Components 31 | . 11 . 10 . . . 10 . . Parts Scanalyzed 12 | . . . 4 . . . 7 . 1 Part Schematics Acquired 11 | . . . 4 . . . 6 . 1 Parts Damaged 2 | . . . . . . . 2 . . Bothacking | -11 -10 -10 -9 -9 -9 -8 -8 -8 -8 ------------ Run | Jun Mat Min Mat Min Exi Min Mat Gar Mat Used RIF Installer 1 | . . . . . . . . 1 . Robots Hacked . | . . . . . . . . . . Non-combat . | . . . . . . . . . . Combat . | . . . . . . . . . . Robot Hacks Applied . | . . . . . . . . . . Relay Couplers Released 20 | . . . . . . . . 20 . Machine Destruction 20 | . . . . . . . . 20 . Fabnet Peak Effective % . | . . . . . . . . . . Robots Rewired . | . . . . . . . . . . Allies Hacked . | . . . . . . . . . . Hacks Repelled . | . . . . . . . . . . Allies | -11 -10 -10 -9 -9 -9 -8 -8 -8 -8 -------- Run | Jun Mat Min Mat Min Exi Min Mat Gar Mat Total Allies 7 | . . 2 . 4 . . . 1 . Largest Group 4 | . . 2 1 4 . . . 1 . Highest-Rated Group 71 | . . 45 14 71 . . . 31 . Highest-Rated Ally 31 | . . 31 14 31 . . . 31 . Total Orders . | . . . . . . . . . . Ally Attacks 17 | . . 5 . 9 . . . 3 . Total Damage 314 | . . 86 . 161 . . . 67 . Kills 3 | . . 1 . 2 . . . . . Allies Corrupted . | . . . . . . . . . . Allies Melted . | . . . . . . . . . . Intel | -11 -10 -10 -9 -9 -9 -8 -8 -8 -8 ------- Run | Jun Mat Min Mat Min Exi Min Mat Gar Mat Robot Analysis Total 9 | . 2 1 2 . . . 3 . 1 Derelict Logs Recovered 4 | . . 2 . 2 . . . . . Drone Launches . | . . . . . . . . . . Drone Recoveries . | . . . . . . . . . . Exploration | -11 -10 -10 -9 -9 -9 -8 -8 -8 -8 ------------- Run | Jun Mat Min Mat Min Exi Min Mat Gar Mat Turns Passed 14156 | 113 1645 1137 2766 1000 1772 1074 2487 1634 528 Spaces Moved 7433 | 37 829 640 891 395 695 586 2003 1220 137 Core 5 | 5 . . . . . . . . . Treads 3502 | 32 829 640 891 395 635 . . . 80 Legs 2997 | . . . . . 60 586 1074 1220 57 Wheels . | . . . . . . . . . . Hover . | . . . . . . . . . . Flight 929 | . . . . . . . 929 . . Fastest Speed 50 | 50 160 160 160 240 120 120 50 105 110 Average Speed 153 | 145 160 171 239 240 230 166 84 107 165 Slowest Speed 400 | 160 160 240 240 240 320 190 150 110 400 Overloaded Moves . | . . . . . . . . . . Propulsion Burnouts . | . . . . . . . . . . Robots Hopped 8 | . . . . . . . 8 . . Cave-ins Triggered . | . . . . . . . . . . Exploration Rate (%) 73 | 4 98 98 97 71 62 98 97 93 18 Regions Visited 9 Branch Regions 4 Pre-discovered Areas . | . . . . . . . . . . Known Exits Taken 1 | . . . . . . . 1 . . Unknown Exits Taken 7 | 1 1 1 1 1 1 1 . . . Scrap Searched 4 | . . 1 . 1 . 2 . . . Spaces Dug 11 | . . . . 11 . . . . . Terrain Destroyed 447 | . 14 . 43 95 18 70 101 86 20 Melee . | . . . . . . . . . . Projectile 86 | . . . 11 1 . 19 33 2 20 AOE 361 | . 14 . 32 94 18 51 68 84 . Terrain Rammed . | . . . . . . . . . . Walls Destroyed . | . . . . . . . . . . Machines Disabled . | . . . . . . . . . . Actions | -11 -10 -10 -9 -9 -9 -8 -8 -8 -8 --------- Run | Jun Mat Min Mat Min Exi Min Mat Gar Mat Total 9200 | 61 1042 678 1348 418 819 632 2504 1424 274 Wait 879 | . 123 19 292 4 16 7 270 99 49 Move 7409 | 36 828 639 890 394 694 585 1987 1219 137 Hop 7 | . . . . . . . 7 . . Pick Up 87 | 1 14 6 17 1 23 2 16 5 2 Fast Attach 60 | 7 6 1 9 1 8 2 18 4 4 Attach 37 | . . . 5 . 11 1 12 2 6 Detach 13 | 1 . . 1 . 6 . 4 . 1 Swap 68 | . 6 2 13 1 9 3 26 5 3 Drop 103 | . 9 5 27 2 25 3 25 7 . Fire 503 | 16 51 1 87 14 27 28 139 68 72 Melee . | . . . . . . . . . . Ram . | . . . . . . . . . . Kick 1 | . . . . . . 1 . . . Crush 18 | . 5 5 7 1 . . . . . Escape Stasis 12 | . . . . . . . . 12 . Rewire 3 | . . . . . . . . 3 . Trap . | . . . . . . . . . . Miscellaneous . | . . . . . . . . . . Route ------- -11/Junkyard -10/Materials (discovered 4 exits: *Mat x3 / *Min) -10/Mines (discovered 2 exits: *Mat x2) -9/Materials (discovered 6 exits: *Mat x3 / [*Min] / [*Sto x2]) -9/Mines (discovered 2 exits: *Mat / *Exi) -9/Exiles -8/Mines (discovered 2 exits: *Mat x2) -8/Materials (discovered 4 exits: [*Fac x3] / Gar) -8/Garrison (discovered 3 exits: *Mat x3) -8/Materials History --------- Turn | Location | Event 5 | -11/Junkyard | Discovered new exit (range 14) 114 | -11/Junkyard | Entered Materials 317 | -10/Materials | Build established: Mutant 414 | -10/Materials | Central database locked down 456 | -10/Materials | Discovered new exit (range 13) 618 | -10/Materials | Discovered new exit (range 16) 999 | -10/Materials | Discovered new exit (range 16) 1465 | -10/Materials | Repaired Assault Rifle 1491 | -10/Materials | Repaired Lgt. Treads 1518 | -10/Materials | Discovered new exit (range 15) 1759 | -10/Materials | Entered Mines 1798 | -10/Mines | A weapon hastily lodged in a ceiling crevice suddenly fell to the ground 2082 | -10/Mines | Learned Materials stockpile data 2116 | -10/Mines | Discovered new exit (range 7) 2173 | -10/Mines | Learned Materials garrison access intel 2396 | -10/Mines | Discovered new exit (range 13) 2546 | -10/Mines | Found a damaged Exp. Sensor Array with a note attached 2550 | -10/Mines | Found Prototype Device 2550 | -10/Mines | Identified Exp. Sensor Array 2658 | -10/Mines | Met a Derelict shopkeep closing up shop 2896 | -10/Mines | Entered Materials 2896 | -9/Materials | Accompanied by 1 ally 2896 | -9/Materials | Evolved 2 slots: Utility x1, Weapon x1 2959 | -9/Materials | Hacking Suite fried by hacking feedback 3208 | -9/Materials | Build established: Tank 3843 | -9/Materials | Discovered new exit (range 3) 4005 | -9/Materials | Discovered new exit (range 11) 4392 | -9/Materials | Discovered new exit (range 15) 4566 | -9/Materials | Central database locked down 4710 | -9/Materials | Discovered new exit (range 16) 5078 | -9/Materials | Discovered new exit (range 7) 5281 | -9/Materials | Repaired Med. Armor Plating 5506 | -9/Materials | Discovered new exit (range 10) 5662 | -9/Materials | Entered Mines 5677 | -9/Mines | Learned 2 Materials zone layouts 5684 | -9/Mines | Received a Rocket Launcher from a helpful Derelict 5772 | -9/Mines | Learned 4 Materials zone layouts 5977 | -9/Mines | Assembled infested the area 5982 | -9/Mines | Assisted by a Guerilla fighting off Assembled 6028 | -9/Mines | Destroyed 12 combat bots 6125 | -9/Mines | Deemed a non-threat by the Exiles lab entrance 6125 | -9/Mines | Discovered new exit (range 5) 6309 | -9/Mines | Assisted by bots powering up and referring to "LRC-V3" 6414 | -9/Mines | Found a hidden stash of uninstalled traps 6436 | -9/Mines | Discovered new exit (range 8) 6497 | -9/Mines | Received a Mining Laser from a helpful Derelict 6662 | -9/Mines | Entered Exiles 6720 | -9/Exiles | Met 8R-AWN 6927 | -9/Exiles | Met EX-HEX 7018 | -9/Exiles | Met EX-DEC 7456 | -9/Exiles | Met EX-BIN 7489 | -9/Exiles | Aligned with FarCom system 7492 | -9/Exiles | Given EX-Vault access code 7547 | -9/Exiles | Opened EX-Vault 7564 | -9/Exiles | Found Field Lobotomy Kit 7574 | -9/Exiles | Found Flying Fortress v7 7666 | -9/Exiles | Warned to stay clear of 0b10 Research branches 7911 | -9/Exiles | Discovered new exit (range 14) 8217 | -9/Exiles | Attacked by the Exiles 8313 | -9/Exiles | Destroyed 8R-AWN 8328 | -9/Exiles | Found Prototype Ballistic Gun 8328 | -9/Exiles | Identified 8R-AWN's Boregun 8334 | -9/Exiles | Lost 11 parts (3n3u5w) 8346 | -9/Exiles | Found Prototype Device 8346 | -9/Exiles | Identified AS-neutralizer No. 17b 8354 | -9/Exiles | Found Prototype Processor 8356 | -9/Exiles | Found 8R-AWN's Boregun 8361 | -9/Exiles | Found Prototype Protection 8434 | -9/Exiles | Stole two prototypes: Flying Fortress v7, Field Lobotomy Kit 8434 | -9/Exiles | Entered Mines 8447 | -8/Mines | Core integrity fell below 50% 8759 | -8/Mines | Discovered new exit (range 9) 9011 | -8/Mines | Discovered new exit (range 9) 9016 | -8/Mines | Build established: Scavenger-Tank 9508 | -8/Mines | Entered Materials 9508 | -8/Materials | Evolved 2 slots: Propulsion x2 9510 | -8/Materials | Loaded intel: 1 garrison access location 9945 | -8/Materials | Identified 8R-AWN's Armor/EX 9945 | -8/Materials | Identified Exp. Targeting Computer 10026 | -8/Materials | Discovered new exit (range 7) 10133 | -8/Materials | Destroyed 9 combat bots 10169 | -8/Materials | Build established: Gunner 10305 | -8/Materials | Discovered new exit (range 8) 10576 | -8/Materials | Build established: Scavenger-Gunner 10798 | -8/Materials | Discovered new exit (range 8) 11721 | -8/Materials | Garrison activated, responded to threat 11889 | -8/Materials | Identified exit to Garrison 11908 | -8/Materials | First assault squad dispatched 11942 | -8/Materials | Core integrity fell below 50% 11965 | -8/Materials | Sterilization system engaged 11965 | -8/Materials | Non-combat units ordered to evacuate 11995 | -8/Materials | Entered Garrison 12014 | -8/Garrison | Triggered checkpoint 12054 | -8/Garrison | Garrison Relay disabled 12099 | -8/Garrison | Triggered checkpoint 12168 | -8/Garrison | Destroyed 9 combat bots 12180 | -8/Garrison | Triggered checkpoint 12193 | -8/Garrison | Triggered checkpoint 12223 | -8/Garrison | Destroyed 10 combat bots 12330 | -8/Garrison | Triggered checkpoint 12340 | -8/Garrison | Garrison Relay disabled 12375 | -8/Garrison | Triggered checkpoint 12390 | -8/Garrison | Discovered new exit (range 13) 12577 | -8/Garrison | Triggered checkpoint 12618 | -8/Garrison | Garrison Relay disabled 12627 | -8/Garrison | Triggered checkpoint 12655 | -8/Garrison | Discovered new exit (range 12) 12881 | -8/Garrison | Discovered new exit (range 13) 12912 | -8/Garrison | Triggered checkpoint 12936 | -8/Garrison | Garrison Relay disabled 13222 | -8/Garrison | Discovered new exit (range 25) 13222 | -8/Garrison | Discovered new exit (range 78) 13222 | -8/Garrison | Discovered new exit (range 72) 13240 | -8/Garrison | Build established: Mutant 13339 | -8/Garrison | Phase Generator disabled 13374 | -8/Garrison | Installed Relay Interface Framework 13420 | -8/Garrison | Garrison Relay disabled 13523 | -8/Garrison | Rescued a captive Derelict 13563 | -8/Garrison | Spotted B-75 Beast 13629 | -8/Garrison | Entered Materials 13692 | -8/Materials | Garrison activated, responded to threat 13761 | -8/Materials | Core integrity fell below 20% 13777 | -8/Materials | Lost 4 parts (2n1u1w) 14029 | -8/Materials | First assault squad dispatched 14124 | -8/Materials | Repaired Broken Exp. Targeting Computer 14157 | -8/Materials | Destroyed by G-50 Soldier with Heavy Laser Last Messages --------------- 14142_ Destroyed Lgt. Deuterium Engine. 14142_ HV Slug penetrates Repair Station. 14143_ Lgt. Treads destroyed. 14144_ K-01 Serf collects debris. 14144_ HV Slug penetrates G-50 Soldier. 14146_ HV Slug penetrates G-47 Trooper. 14146_ HV Slug penetrates K-01 Serf. 14146_ K-01 Serf suffers critical hit (Destroy). 14146_ Destroyed Wheel. 14147_ 8R-AWN's Boregun destroyed. 14148_ Acquired 61 matter. 14149_ Arm. Medium Treads destroyed. 14151_ M-28 Smith repairs G-50 Soldier. 14152_ Acquired 8R-AWN's Boregun. 14153_ M-28 Smith repairs Carbon-fiber Leg. 14154_ HV Slug penetrates G-50 Soldier. 14156_ M-28 Smith repairs G-47 Trooper. 14156_ HV Slug penetrates Repair Station. 14156_ Repair Station disabled. 14156_ HV Slug penetrates Repair Station. Map ----- +----------------------------------------------------+ | ???????????????????????????????? | | ???????????????????????????????? | | ???????????????????????????????? | | ???????????????????????????????? | | ???????????????????????????????? | | ???????????????????????????????? | | ???????????????????????????????? | | ???????????????????????????????? | | ???????????????????????????????? | | ??????? ???????????????????????? | | ??????#;#??????????????????????? | | ?????? ? ????????????????????? | | ?????? ? ????????????????????? | | ??????]] # #???????????????????? | | ??????]] + #???????????????????? | | ??????] # #?????????????###???? | | ?????? # #?????????????+ ???? | | #######%## #?????????????# #???? | | ; !|*## ############??#+##### | | #==" "=!## ## #### | | #[%"" "%## ## "" + + """ | | # " " "!## ## """ #### """ | | # ""= "%#%% # S" #??# """ | | # ""!%m/%% # """ #??# | | # [%=gg;! # """ #??# ] | | #" =!!@# % + """ #??# ] | | #"R! !!*# # #??# [!! | | #""" !=# ###########??# % | | # # #?## ########+## | | ######### !!=!= | | ????????# ]%%%[ | | ????????# =%[%%= | | ????????####+### ###+######+ | | ???????????????## ????????#] = | | ????????????????# #???????#=% | | ????????????????# #???????# !! | | ????????????????# #???????# !! | | ????????????????# #???????# % | | ????????????????# #???????# | | ????????????????# #???????###" | | ????????????????# ############ | | ????????????????# | | ????????????????# | | ????????????????# """ """ " | | ????????????????# """ """ "" | | ????????????????# "" ! """ "" | | ????????????????# | | ???????########## | | ???????# | | ???????# | +----------------------------------------------------+ Best States ------------- Heat Dissipation 57 Coolant Potential 80 Energy Generation 19 Energy Capacity 310 Matter Stores 300 Matter Capacity 300 Sight Range 20 Terrain Scan Density 10 Jamming Range 12 Additional Mass Support 12 Armor Coverage 450 Weapon Cycling 25 Evasion (%) 60 Targeting Accuracy 5 Recoil Reduction 10 Offensive Hacking 10 Defensive Hacking 10 Item Schematics ----------------- Minigun | -9/Materials | Scanalyzed Med. Armor Plating | -9/Materials | Scanalyzed Exp. Sensor Array | -9/Materials | Scanalyzed Imp. Assault Rifle | -9/Materials | Scanalyzed Adv. Weapon Cycler | -8/Materials | Scanalyzed Exp. Targeting Computer | -8/Materials | Scanalyzed System Restoration Module | -8/Materials | Scanalyzed Exp. Heat Sink | -8/Materials | Scanalyzed Gauss Rifle | -8/Materials | Scanalyzed Coolant Injector | -8/Materials | Scanalyzed Imp. Plasma Cutter | -8/Materials | Scanalyzed Robot Schematics ------------------ None Fabricated ------------ Nothing Alien Tech Used ----------------- None Achievements -------------- None Challenges ------------ None Game ------ Seed ScanAblativePick Manual? 0 Play Time 02:27:20 Cumulative 44.1 hours Start 2023.07.14 @ 16:01:26 End 2023.07.14 @ 19:23:15 Sessions 3 Manual Loads 0 Difficulty Rogue Special Mode None Game No. 32 Rogue 32 Adventurer 0 Explorer 0 Win Type - Total 0 Types 0/0/0/0/0/0/0/0/0 Lore% 28 Gallery% 33 Achievement% 30 Wizard Run 0 Options --------- ASCII 0 Keyboard 0 Movement Mouse Keybinds 0 Fullscreen 1 Font 18/SmallcapsGlow Map View 76x50 Tactical HUD 1 Map Filters NONE Filters NONE Steam X RUN: b4376282-dbea-4c1e-adf4-a5e5a3201aed